fUST/lending_fUST_20250717
["ID","MTS","AMOUNT","RATE_DAILY","PERIOD"]
[372582798,1752693044075,-460.0,0.0002,2]
[372582799,1752693044084,-460.0,0.0002,2]
[372582800,1752693044096,-460.0,0.0002,2]
[372582801,1752693044107,-515.29927543,0.00020021,2]
[372582802,1752693044116,-160.0,0.00020023,2]
[372582803,1752693044126,-500.0,0.000201,2]
[372582804,1752693044136,-500.0,0.000201,2]
[372582805,1752693044147,-572.3052284,0.000201,2]
[372582806,1752693044158,-500.0,0.000201,2]
[372582807,1752693044167,-258.164606,0.00020187,2]
[372582808,1752693044177,-500.0,0.0002023,2]
[372582809,1752693044187,-619.6777069,0.0002023,2]
[372582810,1752693044197,-344.66638024,0.0002023,2]
[372582811,1752693044207,-500.0,0.0002023,2]
[372582812,1752693044216,-556.66169075,0.0002023,2]
[372582813,1752693044225,-500.0,0.0002023,2]
[372582814,1752693044236,-500.0,0.0002023,2]
[372582815,1752693044246,-500.0,0.0002023,2]
[372582816,1752693044255,-500.45140818,0.0002023,2]
[372582817,1752693044267,-500.0,0.0002023,2]
[372582818,1752693044278,-500.0,0.0002023,2]
[372582819,1752693044287,-500.0,0.0002023,2]
[372582820,1752693044298,-500.0,0.0002023,2]
[372582821,1752693044308,-500.0,0.0002023,2]
[372582822,1752693044317,-500.0,0.0002023,2]
[372582823,1752693044328,-500.0,0.0002023,2]
[372582824,1752693044339,-460.0,0.00020273,2]
[372582825,1752693044350,-317.55069296,0.00020273,2]
[372582826,1752693044359,-555.83,0.00020273,2]
[372582827,1752693044374,-706.54,0.00020273,2]
[372582828,1752693044384,-462.87,0.00020273,2]
[372582829,1752693044395,-460.0,0.00020273,2]
[372582830,1752693044405,-460.0,0.00020273,2]
[372582831,1752693044417,-460.0,0.00020273,2]
[372582832,1752693044429,-460.0,0.00020273,2]
[372582833,1752693044440,-460.0,0.00020273,2]
[372582834,1752693044452,-460.0,0.00020273,2]
[372582835,1752693044463,-368.54,0.00020273,2]
[372582836,1752693044474,-533.55,0.00020273,2]
[372582837,1752693044485,-460.0,0.00020273,2]
[372582838,1752693044496,-460.0,0.00020273,2]
[372582839,1752693044508,-460.0,0.00020273,2]
[372582840,1752693044517,-460.0,0.00020273,2]
[372582841,1752693044527,-460.0,0.00020273,2]
[372582842,1752693044537,-333.28852949,0.00020273,2]
[372582843,1752693044546,-460.37,0.00020273,2]
[372582844,1752693044556,-460.0,0.00020273,2]
[372582845,1752693044567,-460.0,0.00020273,2]
[372582846,1752693044578,-460.0,0.00020273,2]
[372582847,1752693044591,-150.28,0.00020273,2]
[372582848,1752693044603,-734.55,0.00020273,2]
[372582849,1752693044612,-460.0,0.00020273,2]
[372582850,1752693044656,-576.72,0.00020273,2]
[372582851,1752693044666,-460.0,0.00020273,2]
[372582852,1752693044675,-1558.81,0.00020273,2]
[372582853,1752693044685,-460.0,0.00020273,2]
[372582854,1752693044695,-460.0,0.00020273,2]
[372582855,1752693044704,-460.0,0.00020273,2]
[372582856,1752693044714,-460.0,0.00020273,2]
[372582857,1752693044723,-460.0,0.00020273,2]
[372582858,1752693044733,-460.0,0.00020273,2]
[372582859,1752693044743,-1459.95,0.00020273,2]
[372582860,1752693044755,-460.0,0.00020273,2]
[372582861,1752693044766,-460.0,0.00020273,2]
[372582862,1752693044776,-1151.0,0.00020273,2]
[372582863,1752693044786,-460.0,0.00020273,2]
[372582864,1752693044797,-460.0,0.00020273,2]
[372582865,1752693044807,-460.0,0.00020273,2]
[372582866,1752693044817,-1126.26,0.00020273,2]
[372582867,1752693044826,-460.0,0.00020273,2]
[372582868,1752693044837,-460.0,0.00020273,2]
[372582869,1752693044847,-433.21387643,0.00020273,2]
[372582870,1752693044860,-460.0,0.00020273,2]
[372582871,1752693044870,-460.0,0.00020273,2]
[372582872,1752693044880,-460.0,0.00020273,2]
[372582873,1752693044889,-460.0,0.00020273,2]
[372582874,1752693044899,-460.0,0.00020273,2]
[372582875,1752693044908,-460.0,0.00020273,2]
[372582876,1752693044918,-460.0,0.00020273,2]
[372582877,1752693044927,-460.0,0.00020273,2]
[372582878,1752693044937,-180.30788796,0.0002042,2]
[372582879,1752693044946,-214.40824756,0.00020521,3]
[372582880,1752693044956,-468.75,0.00020521,3]
[372582881,1752693044966,-9330.00367169,0.00020521,3]
[372582882,1752693044975,-604.44983537,0.00020547,2]
[372582883,1752693044985,-706.54,0.00020547,2]
[372582884,1752693044998,-460.0,0.00020547,2]
[372582885,1752693045009,-460.0,0.00020547,2]
[372582886,1752693045019,-172.11,0.00020547,2]
[372582887,1752693045028,-460.0,0.00020547,2]
[372582888,1752693045038,-460.0,0.00020547,2]
[372582889,1752693045048,-460.0,0.00020547,2]
[372582890,1752693045058,-533.55,0.00020547,2]
[372582891,1752693045067,-460.0,0.00020547,2]
[372582892,1752693045077,-189.10197606,0.00020547,2]
[372582893,1752693045086,-460.0,0.00020547,2]
[372582894,1752693045096,-460.0,0.00020547,2]
[372582895,1752693045107,-233.07,0.00020547,2]
[372582896,1752693045117,-460.37,0.00020547,2]
[372582897,1752693045127,-460.0,0.00020547,2]
[372582898,1752693045136,-460.0,0.00020547,2]
[372582899,1752693045146,-734.55,0.00020547,2]
[372582900,1752693045156,-460.0,0.00020547,2]
[372582901,1752693045167,-576.72,0.00020547,2]
[372582902,1752693045177,-460.0,0.00020547,2]
[372582903,1752693045186,-1558.81,0.00020547,2]
[372582904,1752693045196,-460.0,0.00020547,2]
[372582905,1752693045205,-460.0,0.00020547,2]
[372582906,1752693045215,-460.0,0.00020547,2]
[372582907,1752693045224,-245.09,0.00020547,2]
[372582908,1752693045234,-460.0,0.00020547,2]
[372582909,1752693045244,-460.0,0.00020547,2]
[372582910,1752693045253,-1459.95,0.00020547,2]
[372582911,1752693045263,-460.0,0.00020547,2]
[372582912,1752693045272,-460.0,0.00020547,2]
[372582913,1752693045283,-1151.0,0.00020547,2]
[372582914,1752693045295,-176.35,0.00020547,2]
[372582915,1752693045305,-460.0,0.00020547,2]
[372582916,1752693045315,-460.0,0.00020547,2]
[372582917,1752693045324,-1126.26,0.00020547,2]
[372582918,1752693045334,-460.0,0.00020547,2]
[372582919,1752693045344,-460.0,0.00020547,2]
[372582921,1752693045355,-460.0,0.00020547,2]
[372582923,1752693045368,-460.0,0.00020547,2]
[372582924,1752693045380,-460.0,0.00020547,2]
[372582925,1752693045392,-460.0,0.00020547,2]
[372582926,1752693045402,-460.0,0.00020547,2]
[372582927,1752693045415,-460.0,0.00020547,2]
[372582928,1752693045424,-460.0,0.00020547,2]
[372582929,1752693045434,-260.0,0.00020571,2]
[372582930,1752693045444,-500.0,0.00020594,2]
[372582931,1752693045455,-214.40824756,0.00020665,2]
[372582932,1752693045465,-525.58295679,0.00020665,2]
[372582933,1752693045475,-160.0,0.00020665,2]
[372582934,1752693045485,-215.5496034,0.00020665,2]
[372582935,1752693045495,-230.8109288,0.00020665,2]
[372582936,1752693045506,-160.0,0.00020665,2]
[372582937,1752693045516,-838.99048831,0.00020665,2]
[372582938,1752693045527,-160.0,0.00020666,2]
[372582939,1752693045537,-12605.49131908,0.00020666,2]
[372582940,1752693045547,-420.0,0.00020789,2]
[372582941,1752693045558,-706.54,0.00020821,2]
[372582942,1752693045568,-460.0,0.00020821,2]
[372582943,1752693045579,-460.0,0.00020821,2]
[372582944,1752693045589,-460.0,0.00020821,2]
[372582945,1752693045599,-244.03,0.00020821,2]
[372582946,1752693045611,-460.0,0.00020821,2]
[372582947,1752693045621,-533.55,0.00020821,2]
[372582948,1752693045631,-460.0,0.00020821,2]
[372582949,1752693045642,-460.0,0.00020821,2]
[372582950,1752693045653,-460.37,0.00020821,2]
[372582951,1752693045663,-460.0,0.00020821,2]
[372582952,1752693045673,-460.0,0.00020821,2]
[372582953,1752693045683,-734.55,0.00020821,2]
[372582954,1752693045694,-460.0,0.00020821,2]
[372582955,1752693045706,-576.72,0.00020821,2]
[372582956,1752693045716,-279.77729285,0.00020821,2]
[372582958,1752693045727,-1558.81,0.00020821,2]
[372582959,1752693045737,-460.0,0.00020821,2]
[372582960,1752693045747,-460.0,0.00020821,2]
[372582961,1752693045758,-460.0,0.00020821,2]
[372582962,1752693045767,-460.0,0.00020821,2]
[372582963,1752693045778,-460.0,0.00020821,2]
[372582964,1752693045788,-1459.95,0.00020821,2]
[372582965,1752693045799,-460.0,0.00020821,2]
[372582966,1752693045809,-460.0,0.00020821,2]
[372582967,1752693045820,-1151.0,0.00020821,2]
[372582968,1752693045830,-460.0,0.00020821,2]
[372582969,1752693045841,-460.0,0.00020821,2]
[372582970,1752693045853,-1126.26,0.00020821,2]
[372582971,1752693045863,-460.0,0.00020821,2]
[372582972,1752693045875,-460.0,0.00020821,2]
[372582973,1752693045886,-460.0,0.00020821,2]
[372582974,1752693045897,-460.0,0.00020821,2]
[372582975,1752693045907,-460.0,0.00020821,2]
[372582976,1752693045916,-460.0,0.00020821,2]
[372582977,1752693045926,-460.0,0.00020821,2]
[372582978,1752693045936,-460.0,0.00020821,2]
[372582979,1752693045946,-264.17,0.00020821,2]
[372582980,1752693045956,-252.0,0.0002089,2]
[372582981,1752693045967,-1030.03910685,0.000209,4]
[372582982,1752693045977,-500.0,0.00020904,2]
[372582983,1752693045988,-500.0,0.00020936,2]
[372582984,1752693045999,-500.0,0.00020936,2]
[372582985,1752693046010,-1236.916,0.00021033,2]
[372582986,1752693046020,-500.0,0.00021056,2]
[372582987,1752693046030,-1030.03910682,0.00021072,4]
[372582988,1752693046041,-706.54,0.00021095,2]
[372582989,1752693046051,-460.0,0.00021095,2]
[372582990,1752693046061,-460.0,0.00021095,2]
[372582991,1752693046072,-460.0,0.00021095,2]
[372582992,1752693046083,-324.32,0.00021095,2]
[372582993,1752693046094,-533.55,0.00021095,2]
[372582994,1752693046105,-460.0,0.00021095,2]
[372582995,1752693046116,-460.0,0.00021095,2]
[372582996,1752693046126,-460.37,0.00021095,2]
[372582997,1752693046136,-460.0,0.00021095,2]
[372582998,1752693046146,-458.45368732,0.00021095,2]
[372582999,1752693046156,-734.55,0.00021095,2]
[372583000,1752693046167,-460.0,0.00021095,2]
[372583001,1752693046177,-576.72,0.00021095,2]
[372583002,1752693046187,-1558.81,0.00021095,2]
[372583003,1752693046198,-460.0,0.00021095,2]
[372583004,1752693046208,-460.0,0.00021095,2]
[372583005,1752693046218,-460.0,0.00021095,2]
[372583006,1752693046228,-460.0,0.00021095,2]
[372583007,1752693046239,-460.0,0.00021095,2]
[372583009,1752693046249,-1459.95,0.00021095,2]
[372583010,1752693046262,-460.0,0.00021095,2]
[372583011,1752693046272,-460.0,0.00021095,2]
[372583012,1752693046282,-1151.0,0.00021095,2]
[372583013,1752693046292,-326.06,0.00021095,2]
[372583014,1752693046302,-460.0,0.00021095,2]
[372583015,1752693046312,-1126.26,0.00021095,2]
[372583016,1752693046322,-460.0,0.00021095,2]
[372583017,1752693046332,-460.0,0.00021095,2]
[372583018,1752693046342,-460.0,0.00021095,2]
[372583019,1752693046352,-460.0,0.00021095,2]
[372583020,1752693046363,-460.0,0.00021095,2]
[372583021,1752693046377,-460.0,0.00021095,2]
[372583022,1752693046387,-460.0,0.00021095,2]
[372583023,1752693046397,-460.0,0.00021095,2]
[372583024,1752693046407,-360.0,0.00021119,2]
[372583025,1752693046417,-503.27154105,0.00021142,2]
[372583026,1752693046427,-1151.7065869,0.00021154,2]
[372583027,1752693046437,-1030.03910682,0.00021245,4]
[372583028,1752693046448,-539.16347425,0.00021324,2]
[372583029,1752693046458,-706.54,0.00021369,2]
[372583030,1752693046468,-460.0,0.00021369,2]
[372583031,1752693046479,-460.0,0.00021369,2]
[372583032,1752693046489,-460.0,0.00021369,2]
[372583033,1752693046499,-533.55,0.00021369,2]
[372583034,1752693046509,-460.0,0.00021369,2]
[372583035,1752693046519,-460.0,0.00021369,2]
[372583036,1752693046529,-460.37,0.00021369,2]
[372583037,1752693046540,-460.0,0.00021369,2]
[372583038,1752693046550,-734.55,0.00021369,2]
[372583039,1752693046561,-460.0,0.00021369,2]
[372583040,1752693046571,-576.72,0.00021369,2]
[372583041,1752693046582,-1558.81,0.00021369,2]
[372583042,1752693046596,-460.0,0.00021369,2]
[372583043,1752693046609,-460.0,0.00021369,2]
[372583044,1752693046621,-460.0,0.00021369,2]
[372583045,1752693046633,-460.0,0.00021369,2]
[372583046,1752693046646,-460.0,0.00021369,2]
[372583047,1752693046658,-1459.95,0.00021369,2]
[372583048,1752693046668,-483.65776656,0.00021369,2]
[372583049,1752693046683,-460.0,0.00021369,2]
[372583050,1752693046693,-1151.0,0.00021369,2]
[372583051,1752693046704,-1126.26,0.00021369,2]
[372583052,1752693046716,-460.0,0.00021369,2]
[372583053,1752693046727,-460.0,0.00021369,2]
[372583054,1752693046738,-460.0,0.00021369,2]
[372583055,1752693046751,-460.0,0.00021369,2]
[372583056,1752693046764,-460.0,0.00021369,2]
[372583057,1752693046775,-460.0,0.00021369,2]
[372583058,1752693046787,-378.00575338,0.00021369,2]
[372583059,1752693046798,-460.0,0.00021369,2]
[372583060,1752693046810,-1030.03910682,0.00021417,5]
[372583061,1752693046822,-207.4,0.00021513,2]
[372583062,1752693046834,-1030.03910682,0.0002159,5]
[372583063,1752693046845,-151.0,0.00021643,2]
[372583064,1752693046857,-151.0,0.00021643,2]
[372583065,1752693046868,-706.54,0.00021643,2]
[372583066,1752693046879,-460.0,0.00021643,2]
[372583067,1752693046890,-460.0,0.00021643,2]
[372583068,1752693046902,-460.0,0.00021643,2]
[372583069,1752693046913,-533.55,0.00021643,2]
[372583070,1752693046924,-239.55,0.00021643,2]
[372583071,1752693046934,-460.0,0.00021643,2]
[372583072,1752693046946,-460.37,0.00021643,2]
[372583073,1752693046959,-325.87,0.00021643,2]
[372583074,1752693046970,-734.55,0.00021643,2]
[372583075,1752693046981,-460.0,0.00021643,2]
[372583076,1752693046992,-576.72,0.00021643,2]
[372583077,1752693047003,-1558.81,0.00021643,2]
[372583078,1752693047014,-460.0,0.00021643,2]
[372583079,1752693047024,-321.40529403,0.00021643,2]
[372583080,1752693047034,-460.0,0.00021643,2]
[372583081,1752693047044,-460.0,0.00021643,2]
[372583082,1752693047055,-271.965308,0.00021643,2]
[372583083,1752693047067,-1459.95,0.00021643,2]
[372583084,1752693047077,-460.0,0.00021643,2]
[372583085,1752693047088,-1151.0,0.00021643,2]
[372583086,1752693047099,-1126.26,0.00021643,2]
[372583087,1752693047111,-241.55,0.00021643,2]
[372583088,1752693047122,-460.0,0.00021643,2]
[372583089,1752693047134,-460.0,0.00021643,2]
[372583090,1752693047146,-460.0,0.00021643,2]
[372583091,1752693047157,-460.0,0.00021643,2]
[372583092,1752693047168,-460.0,0.00021643,2]
[372583093,1752693047180,-460.0,0.00021643,2]
[372583094,1752693047192,-460.0,0.00021667,2]
[372583095,1752693047203,-1030.03910682,0.00021762,5]
[372583096,1752693047215,-183.5,0.00021795,4]
[372583097,1752693047227,-151.0,0.00021917,2]
[372583098,1752693047239,-151.0,0.00021917,2]
[372583099,1752693047250,-706.54,0.00021917,2]
[372583100,1752693047261,-151.0,0.00021917,2]
[372583101,1752693047271,-205.39,0.00021917,2]
[372583102,1752693047281,-460.0,0.00021917,2]
[372583103,1752693047290,-460.0,0.00021917,2]
[372583104,1752693047300,-533.55,0.00021917,2]
[372583105,1752693047310,-460.0,0.00021917,2]
[372583106,1752693047321,-460.37,0.00021917,2]
[372583107,1752693047332,-734.55,0.00021917,2]
[372583108,1752693047344,-460.0,0.00021917,2]
[372583109,1752693047357,-576.72,0.00021917,2]
[372583110,1752693047372,-1558.81,0.00021917,2]
[372583111,1752693047383,-527.326064,0.00021917,2]
[372583112,1752693047394,-460.0,0.00021917,2]
[372583113,1752693047404,-460.0,0.00021917,2]
[372583114,1752693047415,-1459.95,0.00021917,2]
[372583115,1752693047425,-460.0,0.00021917,2]
[372583116,1752693047435,-1151.0,0.00021917,2]
[372583117,1752693047448,-1126.26,0.00021917,2]
[372583118,1752693047459,-460.0,0.00021917,2]
[372583119,1752693047471,-460.0,0.00021917,2]
[372583120,1752693047483,-460.0,0.00021917,2]
[372583121,1752693047495,-460.0,0.00021917,2]
[372583122,1752693047506,-460.0,0.00021917,2]
[372583123,1752693047516,-465.1978824,0.00021917,2]
[372583124,1752693047527,-1030.03910682,0.00021934,6]
[372583125,1752693047537,-541.04910487,0.00021973,2]
[372583126,1752693047547,-500.0,0.00021973,2]
[372583127,1752693047558,-151.0,0.00021973,7]
[372583128,1752693047568,-151.0,0.00021973,7]
[372583129,1752693047579,-178.021619,0.00021976,2]
[372583130,1752693047590,-4605.08,0.00022,7]
[372583131,1752693047600,-2532.65,0.00022,7]
[372583132,1752693047612,-1063.453509,0.00022,7]
[372583133,1752693047623,-1063.453509,0.00022,7]
[372583134,1752693047635,-214.40824756,0.00022,7]
[372583135,1752693047646,-22878.27,0.00022,7]
[372583136,1752693047657,-34764.34,0.00022,2]
[372583137,1752693047668,-500.0,0.00022004,2]
[372583138,1752693047680,-500.0,0.00022052,2]
[372583139,1752693047691,-1030.03910682,0.00022107,6]
[372583140,1752693047703,-228.938672,0.00022107,7]
[372583141,1752693047714,-228.938672,0.00022107,7]
[372583142,1752693047725,-151.0,0.00022107,7]
[372583143,1752693047735,-183.5,0.00022167,5]
[372583144,1752693047746,-151.0,0.00022191,7]
[372583145,1752693047757,-151.0,0.00022191,7]
[372583146,1752693047768,-706.54,0.00022191,2]
[372583147,1752693047778,-460.0,0.00022191,2]
[372583148,1752693047788,-511.2,0.00022191,2]
[372583149,1752693047799,-533.55,0.00022191,2]
[372583150,1752693047809,-460.0,0.00022191,2]
[372583151,1752693047819,-460.37,0.00022191,2]
[372583152,1752693047830,-734.55,0.00022191,2]
[372583153,1752693047840,-460.0,0.00022191,2]
[372583154,1752693047851,-576.72,0.00022191,2]
[372583155,1752693047861,-1558.81,0.00022191,2]
[372583156,1752693047872,-460.0,0.00022191,2]
[372583157,1752693047883,-460.0,0.00022191,2]
[372583158,1752693047893,-460.0,0.00022191,2]
[372583159,1752693047904,-1151.0,0.00022191,2]
[372583160,1752693047915,-1459.95,0.00022191,2]
[372583161,1752693047925,-1126.26,0.00022191,2]
[372583162,1752693047936,-460.0,0.00022191,2]
[372583163,1752693047946,-460.0,0.00022191,2]
[372583164,1752693047956,-460.0,0.00022191,2]
[372583165,1752693047966,-460.0,0.00022191,2]
[372583166,1752693047977,-460.0,0.00022191,2]
[372583167,1752693047987,-560.0,0.00022215,2]
[372583168,1752693047998,-151.0,0.00022256,7]
[372583169,1752693048008,-151.0,0.00022256,7]
[372583170,1752693048019,-216.481886,0.00022256,7]
[372583171,1752693048030,-1030.03910682,0.00022279,6]
[372583172,1752693048040,-1063.453509,0.0002239,7]
[372583173,1752693048050,-1063.453509,0.0002239,7]
[372583174,1752693048061,-1063.453509,0.0002239,7]
[372583175,1752693048071,-1063.453509,0.0002239,7]
[372583176,1752693048082,-228.938672,0.0002239,7]
[372583177,1752693048092,-228.938672,0.0002239,7]
[372583178,1752693048104,-228.938672,0.0002239,7]
[372583179,1752693048115,-228.938672,0.0002239,7]
[372583180,1752693048126,-1030.03910682,0.00022452,7]
[372583181,1752693048136,-706.54,0.00022465,2]
[372583182,1752693048147,-460.0,0.00022465,2]
[372583183,1752693048158,-533.55,0.00022465,2]
[372583184,1752693048168,-460.0,0.00022465,2]
[372583185,1752693048179,-460.37,0.00022465,2]
[372583186,1752693048190,-734.55,0.00022465,2]
[372583187,1752693048200,-460.0,0.00022465,2]
[372583188,1752693048211,-576.72,0.00022465,2]
[372583189,1752693048221,-1558.81,0.00022465,2]
[372583190,1752693048231,-207.98,0.00022465,2]
[372583191,1752693048242,-460.0,0.00022465,2]
[372583192,1752693048252,-460.0,0.00022465,2]
[372583193,1752693048263,-1151.0,0.00022465,2]
[372583194,1752693048274,-1459.95,0.00022465,2]
[372583195,1752693048284,-1126.26,0.00022465,2]
[372583196,1752693048295,-460.0,0.00022465,2]
[372583197,1752693048306,-460.0,0.00022465,2]
[372583198,1752693048316,-460.0,0.00022465,2]
[372583199,1752693048327,-460.0,0.00022465,2]
[372583200,1752693048338,-460.0,0.00022465,2]
[372583201,1752693048348,-1063.453509,0.0002249,7]
[372583202,1752693048361,-1063.453509,0.0002249,7]
[372583203,1752693048379,-1063.453509,0.0002249,7]
[372583204,1752693048389,-1063.453509,0.0002249,7]
[372583205,1752693048400,-228.938672,0.0002249,7]
[372583206,1752693048411,-228.938672,0.0002249,7]
[372583207,1752693048422,-228.938672,0.0002249,7]
[372583208,1752693048432,-228.938672,0.0002249,7]
[372583209,1752693048443,-151.0,0.0002249,7]
[372583210,1752693048456,-151.0,0.0002249,7]
[372583211,1752693048467,-151.0,0.0002249,7]
[372583212,1752693048477,-151.0,0.0002249,7]
[372583213,1752693048488,-151.0,0.0002249,7]
[372583214,1752693048499,-151.0,0.0002249,7]
[372583215,1752693048510,-154.0,0.000225,3]
[372583216,1752693048520,-1000.0,0.00022521,2]
[372583217,1752693048531,-183.5,0.00022539,5]
[372583218,1752693048541,-1030.03910682,0.00022624,7]
[372583219,1752693048552,-587.0,0.00022659,2]
[372583220,1752693048562,-835.95612937,0.000227,2]
[372583221,1752693048859,-2392.2,0.000227,2]
[372583223,1752693303874,167.75929574,0.0001631,2]
[372583224,1752693303899,5218.70869779,0.0001631,2]
[372583227,1752693519202,232.348145,0.00013699,2]
[372583228,1752693603094,1786.80342809,0.0001631,2]
[372583234,1752694041142,-300.0,0.0001897,2]
[372583235,1752694041167,-500.0,0.00018971,2]
[372583236,1752694041190,-500.0,0.00018971,2]
[372583237,1752694041212,-500.0,0.00018971,2]
[372583238,1752694041235,-231.82855725,0.00018971,2]
[372583295,1752694232114,-1629.15000004,0.000189,2]
[372583296,1752694236397,-1024.50751,0.000189,2]
[372583297,1752694236407,-294.93716538,0.000189,2]
[372583298,1752694236416,-300.0,0.00018969,2]
[372583299,1752694236428,-1200.0,0.00018969,2]
[372583300,1752694236437,-176.77068131,0.0001897,2]
[372583301,1752694236446,-500.0,0.0001897,2]
[372583302,1752694236455,-500.0,0.0001897,2]
[372583303,1752694236465,-500.0,0.0001897,2]
[372583304,1752694236475,-500.0,0.0001897,2]
[372583305,1752694236484,-500.0,0.0001897,2]
[372583306,1752694236493,-292.75102133,0.0001897,2]
[372583307,1752694236503,-500.0,0.0001897,2]
[372583308,1752694236511,-500.0,0.0001897,2]
[372583309,1752694236520,-500.0,0.0001897,2]
[372583310,1752694236530,-500.0,0.0001897,2]
[372583311,1752694236539,-500.0,0.0001897,2]
[372583312,1752694236548,-500.0,0.0001897,2]
[372583313,1752694236557,-500.0,0.0001897,2]
[372583314,1752694236566,-500.0,0.0001897,2]
[372583315,1752694236576,-460.0,0.00018977,2]
[372583316,1752694236585,-460.0,0.00018977,2]
[372583317,1752694236594,-460.0,0.00018977,2]
[372583318,1752694236603,-460.0,0.00018977,2]
[372583319,1752694236612,-460.0,0.00018977,2]
[372583320,1752694236621,-460.0,0.00018977,2]
[372583321,1752694236631,-460.0,0.00018977,2]
[372583322,1752694236640,-460.0,0.00018977,2]
[372583323,1752694236649,-460.0,0.00018977,2]
[372583324,1752694236658,-460.0,0.00018977,2]
[372583325,1752694236667,-299.3584382,0.00018977,2]
[372583326,1752694236677,-460.0,0.00018977,2]
[372583327,1752694236686,-460.0,0.00018977,2]
[372583328,1752694236695,-816.87,0.00018977,2]
[372583329,1752694236704,-1680.19,0.00018977,2]
[372583330,1752694236714,-460.0,0.00018977,2]
[372583331,1752694236723,-165.20533426,0.00018977,2]
[372583332,1752694236733,-460.0,0.00018977,2]
[372583333,1752694236746,-460.0,0.00018977,2]
[372583334,1752694236755,-460.0,0.00018977,2]
[372583335,1752694236768,-460.0,0.00018977,2]
[372583336,1752694236779,-2803.52,0.00018977,2]
[372583337,1752694236788,-460.0,0.00018977,2]
[372583338,1752694236798,-642.09,0.00018977,2]
[372583339,1752694236807,-460.0,0.00018977,2]
[372583340,1752694236817,-1748.36,0.00018977,2]
[372583341,1752694236827,-460.0,0.00018977,2]
[372583342,1752694236837,-460.0,0.00018977,2]
[372583343,1752694236847,-460.0,0.00018977,2]
[372583344,1752694236857,-460.0,0.00018977,2]
[372583345,1752694236867,-460.0,0.00018977,2]
[372583346,1752694236876,-972.68,0.00018977,2]
[372583347,1752694236886,-460.0,0.00018977,2]
[372583348,1752694236895,-460.0,0.00018977,2]
[372583349,1752694236906,-460.0,0.00018977,2]
[372583350,1752694236915,-460.0,0.00018977,2]
[372583351,1752694236928,-460.0,0.00018977,2]
[372583352,1752694236937,-460.0,0.00018977,2]
[372583353,1752694236947,-1438.37,0.00018977,2]
[372583354,1752694236957,-983.03,0.00018977,2]
[372583355,1752694236967,-460.0,0.00018977,2]
[372583356,1752694236978,-475.44,0.00018977,2]
[372583357,1752694236987,-460.0,0.00018977,2]
[372583358,1752694236996,-460.0,0.00018977,2]
[372583359,1752694237007,-460.0,0.00018977,2]
[372583360,1752694237017,-218.97771845,0.00018977,2]
[372583361,1752694237027,-3916.47399644,0.00018978,2]
[372583362,1752694237043,-39944.79769479,0.00018978,2]
[372583363,1752694237053,-27169.80543485,0.00019,20]
[372583364,1752694237062,-1765.45,0.00019077,2]
[372583365,1752694237072,-460.0,0.00019077,2]